{"text_format":"3","workbook":"xlsx","n_sheets":3,"sheets":["Отчет месячного бюджета","Месячные затраты","Дополнительные данные"],"not_rendered":{"charts":1,"defined_names":4,"pivot_tables":2},"read":"whole","date_system":"1900"}

{"sheet":"Отчет месячного бюджета","index":0,"n_rows":34,"n_cols":13,"rows_kept":34,"merged":[[7,1,10,1],[7,5,10,5],[7,6,10,6],[12,1,16,1],[12,5,16,5],[12,6,16,6]]}
[null,"Обзор бюджета",{"$nulls":7},"Сводка бюджета"]
[null,"Баланс"]
[null,"Запланированный баланс","(Запланированный минус затраты)",{"$nulls":3},{"$f":"D17-SUM(ПодробноеОписаниеБюджета[Планируемые затраты])","v":{"v":1585,"d":"1,585р."}}]
[null,"Фактический баланс","(Фактический минус затраты)",{"$nulls":3},{"$f":"D11-SUM(ПодробноеОписаниеБюджета[Фактические затраты])","v":{"v":1740,"d":"1,740р."}}]
[null,"Разница","(Фактический минус запланированные затраты)",{"$nulls":3},{"$f":"G4-G3","v":{"v":155,"d":"155р."}}]
[]
[null,"Доход",{"$nulls":3},"Расходы",{"$nulls":3},"Щелкните правой кнопкой сводную таблицу ниже, а затем нажмите Обновить для обновления"]
[null,"ФАКТИЧЕСКИЕ","Доход № 1",{"v":5800,"d":"5,800р."},null,"ФАКТИЧЕСКИЕ",{"$f":"SUM(ПодробноеОписаниеБюджета[Фактические затраты])","v":{"v":7860,"d":"7,860р."}}]
[null,null,"Доход № 2",{"v":2300,"d":"2,300р."},{"$nulls":5},"Категория","Сумма по полю Планируемые затраты","Сумма по полю Фактические затраты","Сумма по полю Разница"]
[null,null,"Дополнительный доход",{"v":1500,"d":"1,500р."},{"$nulls":5},"Дети",{"v":140,"d":"140р."},{"v":140,"d":"140р."},{"v":0,"d":"0р."}]
[null,null,"Общий доход",{"$f":"SUM(D8:D10)","v":{"v":9600,"d":"9,600р."}}]
[{"$nulls":9},"Развлечения",{"v":400,"d":"400р."},{"v":358,"d":"358р."},{"v":42,"d":"42р."}]
[null,"ЗАПЛАНИРОВАННЫЕ",{"$nulls":3},"ЗАПЛАНИРОВАННЫЕ",{"$f":"SUM(ПодробноеОписаниеБюджета[Планируемые затраты])","v":{"v":7915,"d":"7,915р."}}]
[null,null,"Доход № 1",{"v":6000,"d":"6,000р."},{"$nulls":5},"Еда",{"v":1100,"d":"1,100р."},{"v":1320,"d":"1,320р."},{"v":-220,"d":"-220р."}]
[null,null,"Доход № 2",{"v":1000,"d":"1,000р."}]
[null,null,"Дополнительный доход",{"v":2500,"d":"2,500р."},{"$nulls":5},"Подарки и благотворительность",{"v":100,"d":"100р."},{"v":125,"d":"125р."},{"v":-25,"d":"-25р."}]
[null,null,"Общий доход",{"$f":"SUM(D14:D16)","v":{"v":9500,"d":"9,500р."}}]
[{"$nulls":9},"Жилье",{"v":2830,"d":"2,830р."},{"v":2702,"d":"2,702р."},{"v":128,"d":"128р."}]
[]
[{"$nulls":9},"Страхование",{"v":900,"d":"900р."},{"v":900,"d":"900р."},{"v":0,"d":"0р."}]
[]
[{"$nulls":9},"Займы",{"v":200,"d":"200р."},{"v":200,"d":"200р."},{"v":0,"d":"0р."}]
[]
[{"$nulls":9},"Личная гигиена",{"v":150,"d":"150р."},{"v":140,"d":"140р."},{"v":10,"d":"10р."}]
[]
[{"$nulls":9},"Домашние животные",{"v":170,"d":"170р."},{"v":100,"d":"100р."},{"v":70,"d":"70р."}]
[]
[{"$nulls":9},"Сбережения и инвестиции",{"v":200,"d":"200р."},{"v":200,"d":"200р."},{"v":0,"d":"0р."}]
[]
[{"$nulls":9},"Налоги",{"v":300,"d":"300р."},{"v":300,"d":"300р."},{"v":0,"d":"0р."}]
[]
[{"$nulls":9},"Транспорт",{"v":1425,"d":"1,425р."},{"v":1375,"d":"1,375р."},{"v":50,"d":"50р."}]
[]
[{"$nulls":9},"Общий итог",{"v":7915,"d":"7,915р."},{"v":7860,"d":"7,860р."},{"v":55,"d":"55р."}]

{"sheet":"Месячные затраты","index":1,"n_rows":62,"n_cols":7,"rows_kept":62}
[null,"Месячные затраты"]
[null,"Описание","Категория","Планируемые затраты","Фактические затраты","Разница","Обзор фактических затрат"]
[null,"Внеучебные мероприятия","Дети",{"v":40,"d":"40р."},{"v":40,"d":"40р."},{"$f":"ПодробноеОписаниеБюджета[[#This Row],[Планируемые затраты]]-ПодробноеОписаниеБюджета[[#This Row],[Фактические затраты]]","v":{"v":0,"d":"0р."}},{"$f":"ПодробноеОписаниеБюджета[[#This Row],[Фактические затраты]]","v":{"v":40,"d":"$40"}}]
[null,"Медицина","Дети",null,null,{"$f":"ПодробноеОписаниеБюджета[[#This Row],[Планируемые затраты]]-ПодробноеОписаниеБюджета[[#This Row],[Фактические затраты]]","v":{"v":0,"d":"0р."}},{"$f":"ПодробноеОписаниеБюджета[[#This Row],[Фактические затраты]]","v":{"v":0,"d":"$0"}}]
[null,"Школьные принадлежности","Дети",null,null,{"$f":"ПодробноеОписаниеБюджета[[#This Row],[Планируемые затраты]]-ПодробноеОписаниеБюджета[[#This Row],[Фактические затраты]]","v":{"v":0,"d":"0р."}},{"$f":"ПодробноеОписаниеБюджета[[#This Row],[Фактические затраты]]","v":{"v":0,"d":"$0"}}]
[null,"Школьное обучение","Дети",{"v":100,"d":"100р."},{"v":100,"d":"100р."},{"$f":"ПодробноеОписаниеБюджета[[#This Row],[Планируемые затраты]]-ПодробноеОписаниеБюджета[[#This Row],[Фактические затраты]]","v":{"v":0,"d":"0р."}},{"$f":"ПодробноеОписаниеБюджета[[#This Row],[Фактические затраты]]","v":{"v":100,"d":"$100"}}]
[null,"Концерты","Развлечения",{"v":50,"d":"50р."},{"v":40,"d":"40р."},{"$f":"ПодробноеОписаниеБюджета[[#This Row],[Планируемые затраты]]-ПодробноеОписаниеБюджета[[#This Row],[Фактические затраты]]","v":{"v":10,"d":"10р."}},{"$f":"ПодробноеОписаниеБюджета[[#This Row],[Фактические затраты]]","v":{"v":40,"d":"$40"}}]
[null,"Живой театр","Развлечения",{"v":200,"d":"200р."},{"v":150,"d":"150р."},{"$f":"ПодробноеОписаниеБюджета[[#This Row],[Планируемые затраты]]-ПодробноеОписаниеБюджета[[#This Row],[Фактические затраты]]","v":{"v":50,"d":"50р."}},{"$f":"ПодробноеОписаниеБюджета[[#This Row],[Фактические затраты]]","v":{"v":150,"d":"$150"}}]
[null,"Фильмы","Развлечения",{"v":50,"d":"50р."},{"v":28,"d":"28р."},{"$f":"ПодробноеОписаниеБюджета[[#This Row],[Планируемые затраты]]-ПодробноеОписаниеБюджета[[#This Row],[Фактические затраты]]","v":{"v":22,"d":"22р."}},{"$f":"ПодробноеОписаниеБюджета[[#This Row],[Фактические затраты]]","v":{"v":28,"d":"$28"}}]
[null,"Музыка (компакт-диски, загрузки и др.)","Развлечения",{"v":50,"d":"50р."},{"v":30,"d":"30р."},{"$f":"ПодробноеОписаниеБюджета[[#This Row],[Планируемые затраты]]-ПодробноеОписаниеБюджета[[#This Row],[Фактические затраты]]","v":{"v":20,"d":"20р."}},{"$f":"ПодробноеОписаниеБюджета[[#This Row],[Фактические затраты]]","v":{"v":30,"d":"$30"}}]
[null,"Спортивные мероприятия","Развлечения",{"v":0,"d":"0р."},{"v":40,"d":"40р."},{"$f":"ПодробноеОписаниеБюджета[[#This Row],[Планируемые затраты]]-ПодробноеОписаниеБюджета[[#This Row],[Фактические затраты]]","v":{"v":-40,"d":"-40р."}},{"$f":"ПодробноеОписаниеБюджета[[#This Row],[Фактические затраты]]","v":{"v":40,"d":"$40"}}]
[null,"Видео и DVD (покупка)","Развлечения",{"v":20,"d":"20р."},{"v":50,"d":"50р."},{"$f":"ПодробноеОписаниеБюджета[[#This Row],[Планируемые затраты]]-ПодробноеОписаниеБюджета[[#This Row],[Фактические затраты]]","v":{"v":-30,"d":"-30р."}},{"$f":"ПодробноеОписаниеБюджета[[#This Row],[Фактические затраты]]","v":{"v":50,"d":"$50"}}]
[null,"Видео и DVD (прокат)","Развлечения",{"v":30,"d":"30р."},{"v":20,"d":"20р."},{"$f":"ПодробноеОписаниеБюджета[[#This Row],[Планируемые затраты]]-ПодробноеОписаниеБюджета[[#This Row],[Фактические затраты]]","v":{"v":10,"d":"10р."}},{"$f":"ПодробноеОписаниеБюджета[[#This Row],[Фактические затраты]]","v":{"v":20,"d":"$20"}}]
[null,"Рестораны и кафе","Еда",{"v":1000,"d":"1,000р."},{"v":1200,"d":"1,200р."},{"$f":"ПодробноеОписаниеБюджета[[#This Row],[Планируемые затраты]]-ПодробноеОписаниеБюджета[[#This Row],[Фактические затраты]]","v":{"v":-200,"d":"-200р."}},{"$f":"ПодробноеОписаниеБюджета[[#This Row],[Фактические затраты]]","v":{"v":1200,"d":"$1,200"}}]
[null,"Продукты питания","Еда",{"v":100,"d":"100р."},{"v":120,"d":"120р."},{"$f":"ПодробноеОписаниеБюджета[[#This Row],[Планируемые затраты]]-ПодробноеОписаниеБюджета[[#This Row],[Фактические затраты]]","v":{"v":-20,"d":"-20р."}},{"$f":"ПодробноеОписаниеБюджета[[#This Row],[Фактические затраты]]","v":{"v":120,"d":"$120"}}]
[null,"Благотворительность 1","Подарки и благотворительность",{"v":75,"d":"75р."},{"v":100,"d":"100р."},{"$f":"ПодробноеОписаниеБюджета[[#This Row],[Планируемые затраты]]-ПодробноеОписаниеБюджета[[#This Row],[Фактические затраты]]","v":{"v":-25,"d":"-25р."}},{"$f":"ПодробноеОписаниеБюджета[[#This Row],[Фактические затраты]]","v":{"v":100,"d":"$100"}}]
[null,"Благотворительность 2","Подарки и благотворительность",{"v":25,"d":"25р."},{"v":25,"d":"25р."},{"$f":"ПодробноеОписаниеБюджета[[#This Row],[Планируемые затраты]]-ПодробноеОписаниеБюджета[[#This Row],[Фактические затраты]]","v":{"v":0,"d":"0р."}},{"$f":"ПодробноеОписаниеБюджета[[#This Row],[Фактические затраты]]","v":{"v":25,"d":"$25"}}]
[null,"Подарок 1","Подарки и благотворительность",null,null,{"$f":"ПодробноеОписаниеБюджета[[#This Row],[Планируемые затраты]]-ПодробноеОписаниеБюджета[[#This Row],[Фактические затраты]]","v":{"v":0,"d":"0р."}},{"$f":"ПодробноеОписаниеБюджета[[#This Row],[Фактические затраты]]","v":{"v":0,"d":"$0"}}]
[null,"Подарок 2","Подарки и благотворительность",null,null,{"$f":"ПодробноеОписаниеБюджета[[#This Row],[Планируемые затраты]]-ПодробноеОписаниеБюджета[[#This Row],[Фактические затраты]]","v":{"v":0,"d":"0р."}},{"$f":"ПодробноеОписаниеБюджета[[#This Row],[Фактические затраты]]","v":{"v":0,"d":"$0"}}]
[null,"Кабельное или спутниковое телевидение","Жилье",{"v":100,"d":"100р."},{"v":100,"d":"100р."},{"$f":"ПодробноеОписаниеБюджета[[#This Row],[Планируемые затраты]]-ПодробноеОписаниеБюджета[[#This Row],[Фактические затраты]]","v":{"v":0,"d":"0р."}},{"$f":"ПодробноеОписаниеБюджета[[#This Row],[Фактические затраты]]","v":{"v":100,"d":"$100"}}]
[null,"Электричество","Жилье",{"v":45,"d":"45р."},{"v":50,"d":"50р."},{"$f":"ПодробноеОписаниеБюджета[[#This Row],[Планируемые затраты]]-ПодробноеОписаниеБюджета[[#This Row],[Фактические затраты]]","v":{"v":-5,"d":"-5р."}},{"$f":"ПодробноеОписаниеБюджета[[#This Row],[Фактические затраты]]","v":{"v":50,"d":"$50"}}]
[null,"Газ","Жилье",{"v":300,"d":"300р."},{"v":400,"d":"400р."},{"$f":"ПодробноеОписаниеБюджета[[#This Row],[Планируемые затраты]]-ПодробноеОписаниеБюджета[[#This Row],[Фактические затраты]]","v":{"v":-100,"d":"-100р."}},{"$f":"ПодробноеОписаниеБюджета[[#This Row],[Фактические затраты]]","v":{"v":400,"d":"$400"}}]
[null,"Служба уборки в доме","Жилье",{"v":200,"d":"200р."},null,{"$f":"ПодробноеОписаниеБюджета[[#This Row],[Планируемые затраты]]-ПодробноеОписаниеБюджета[[#This Row],[Фактические затраты]]","v":{"v":200,"d":"200р."}},{"$f":"ПодробноеОписаниеБюджета[[#This Row],[Фактические затраты]]","v":{"v":0,"d":"$0"}}]
[null,"Обслуживание","Жилье",{"v":200,"d":"200р."},{"v":150,"d":"150р."},{"$f":"ПодробноеОписаниеБюджета[[#This Row],[Планируемые затраты]]-ПодробноеОписаниеБюджета[[#This Row],[Фактические затраты]]","v":{"v":50,"d":"50р."}},{"$f":"ПодробноеОписаниеБюджета[[#This Row],[Фактические затраты]]","v":{"v":150,"d":"$150"}}]
[null,"Ипотека или аренда","Жилье",{"v":1700,"d":"1,700р."},{"v":1700,"d":"1,700р."},{"$f":"ПодробноеОписаниеБюджета[[#This Row],[Планируемые затраты]]-ПодробноеОписаниеБюджета[[#This Row],[Фактические затраты]]","v":{"v":0,"d":"0р."}},{"$f":"ПодробноеОписаниеБюджета[[#This Row],[Фактические затраты]]","v":{"v":1700,"d":"$1,700"}}]
[null,"Природный газ","Жилье",null,null,{"$f":"ПодробноеОписаниеБюджета[[#This Row],[Планируемые затраты]]-ПодробноеОписаниеБюджета[[#This Row],[Фактические затраты]]","v":{"v":0,"d":"0р."}},{"$f":"ПодробноеОписаниеБюджета[[#This Row],[Фактические затраты]]","v":{"v":0,"d":"$0"}}]
[null,"Интернет-службы","Жилье",{"v":100,"d":"100р."},{"v":100,"d":"100р."},{"$f":"ПодробноеОписаниеБюджета[[#This Row],[Планируемые затраты]]-ПодробноеОписаниеБюджета[[#This Row],[Фактические затраты]]","v":{"v":0,"d":"0р."}},{"$f":"ПодробноеОписаниеБюджета[[#This Row],[Фактические затраты]]","v":{"v":100,"d":"$100"}}]
[null,"Телефон (сотовый)","Жилье",{"v":60,"d":"60р."},{"v":60,"d":"60р."},{"$f":"ПодробноеОписаниеБюджета[[#This Row],[Планируемые затраты]]-ПодробноеОписаниеБюджета[[#This Row],[Фактические затраты]]","v":{"v":0,"d":"0р."}},{"$f":"ПодробноеОписаниеБюджета[[#This Row],[Фактические затраты]]","v":{"v":60,"d":"$60"}}]
[null,"Телефон (домашний)","Жилье",{"v":35,"d":"35р."},{"v":39,"d":"39р."},{"$f":"ПодробноеОписаниеБюджета[[#This Row],[Планируемые затраты]]-ПодробноеОписаниеБюджета[[#This Row],[Фактические затраты]]","v":{"v":-4,"d":"-4р."}},{"$f":"ПодробноеОписаниеБюджета[[#This Row],[Фактические затраты]]","v":{"v":39,"d":"$39"}}]
[null,"Расходные материалы","Жилье",{"v":40,"d":"40р."},{"v":55,"d":"55р."},{"$f":"ПодробноеОписаниеБюджета[[#This Row],[Планируемые затраты]]-ПодробноеОписаниеБюджета[[#This Row],[Фактические затраты]]","v":{"v":-15,"d":"-15р."}},{"$f":"ПодробноеОписаниеБюджета[[#This Row],[Фактические затраты]]","v":{"v":55,"d":"$55"}}]
[null,"Вывоз и утилизация мусора","Жилье",{"v":25,"d":"25р."},{"v":22,"d":"22р."},{"$f":"ПодробноеОписаниеБюджета[[#This Row],[Планируемые затраты]]-ПодробноеОписаниеБюджета[[#This Row],[Фактические затраты]]","v":{"v":3,"d":"3р."}},{"$f":"ПодробноеОписаниеБюджета[[#This Row],[Фактические затраты]]","v":{"v":22,"d":"$22"}}]
[null,"Водоснабжение и канализация","Жилье",{"v":25,"d":"25р."},{"v":26,"d":"26р."},{"$f":"ПодробноеОписаниеБюджета[[#This Row],[Планируемые затраты]]-ПодробноеОписаниеБюджета[[#This Row],[Фактические затраты]]","v":{"v":-1,"d":"-1р."}},{"$f":"ПодробноеОписаниеБюджета[[#This Row],[Фактические затраты]]","v":{"v":26,"d":"$26"}}]
[null,"Здоровье","Страхование",{"v":400,"d":"400р."},{"v":400,"d":"400р."},{"$f":"ПодробноеОписаниеБюджета[[#This Row],[Планируемые затраты]]-ПодробноеОписаниеБюджета[[#This Row],[Фактические затраты]]","v":{"v":0,"d":"0р."}},{"$f":"ПодробноеОписаниеБюджета[[#This Row],[Фактические затраты]]","v":{"v":400,"d":"$400"}}]
[null,"Дом","Страхование",{"v":400,"d":"400р."},{"v":400,"d":"400р."},{"$f":"ПодробноеОписаниеБюджета[[#This Row],[Планируемые затраты]]-ПодробноеОписаниеБюджета[[#This Row],[Фактические затраты]]","v":{"v":0,"d":"0р."}},{"$f":"ПодробноеОписаниеБюджета[[#This Row],[Фактические затраты]]","v":{"v":400,"d":"$400"}}]
[null,"Жизнь","Страхование",{"v":100,"d":"100р."},{"v":100,"d":"100р."},{"$f":"ПодробноеОписаниеБюджета[[#This Row],[Планируемые затраты]]-ПодробноеОписаниеБюджета[[#This Row],[Фактические затраты]]","v":{"v":0,"d":"0р."}},{"$f":"ПодробноеОписаниеБюджета[[#This Row],[Фактические затраты]]","v":{"v":100,"d":"$100"}}]
[null,"Кредитная карта 1","Займы",{"v":200,"d":"200р."},{"v":200,"d":"200р."},{"$f":"ПодробноеОписаниеБюджета[[#This Row],[Планируемые затраты]]-ПодробноеОписаниеБюджета[[#This Row],[Фактические затраты]]","v":{"v":0,"d":"0р."}},{"$f":"ПодробноеОписаниеБюджета[[#This Row],[Фактические затраты]]","v":{"v":200,"d":"$200"}}]
[null,"Кредитная карта 2","Займы",null,null,{"$f":"ПодробноеОписаниеБюджета[[#This Row],[Планируемые затраты]]-ПодробноеОписаниеБюджета[[#This Row],[Фактические затраты]]","v":{"v":0,"d":"0р."}},{"$f":"ПодробноеОписаниеБюджета[[#This Row],[Фактические затраты]]","v":{"v":0,"d":"$0"}}]
[null,"Кредитная карта 3","Займы",null,null,{"$f":"ПодробноеОписаниеБюджета[[#This Row],[Планируемые затраты]]-ПодробноеОписаниеБюджета[[#This Row],[Фактические затраты]]","v":{"v":0,"d":"0р."}},{"$f":"ПодробноеОписаниеБюджета[[#This Row],[Фактические затраты]]","v":{"v":0,"d":"$0"}}]
[null,"Личные","Займы",null,null,{"$f":"ПодробноеОписаниеБюджета[[#This Row],[Планируемые затраты]]-ПодробноеОписаниеБюджета[[#This Row],[Фактические затраты]]","v":{"v":0,"d":"0р."}},{"$f":"ПодробноеОписаниеБюджета[[#This Row],[Фактические затраты]]","v":{"v":0,"d":"$0"}}]
[null,"Студент","Займы",null,null,{"$f":"ПодробноеОписаниеБюджета[[#This Row],[Планируемые затраты]]-ПодробноеОписаниеБюджета[[#This Row],[Фактические затраты]]","v":{"v":0,"d":"0р."}},{"$f":"ПодробноеОписаниеБюджета[[#This Row],[Фактические затраты]]","v":{"v":0,"d":"$0"}}]
[null,"Одежда","Личная гигиена",{"v":150,"d":"150р."},{"v":140,"d":"140р."},{"$f":"ПодробноеОписаниеБюджета[[#This Row],[Планируемые затраты]]-ПодробноеОписаниеБюджета[[#This Row],[Фактические затраты]]","v":{"v":10,"d":"10р."}},{"$f":"ПодробноеОписаниеБюджета[[#This Row],[Фактические затраты]]","v":{"v":140,"d":"$140"}}]
[null,"Химчистка","Личная гигиена",null,null,{"$f":"ПодробноеОписаниеБюджета[[#This Row],[Планируемые затраты]]-ПодробноеОписаниеБюджета[[#This Row],[Фактические затраты]]","v":{"v":0,"d":"0р."}},{"$f":"ПодробноеОписаниеБюджета[[#This Row],[Фактические затраты]]","v":{"v":0,"d":"$0"}}]
[null,"Уход за волосами и ногтями","Личная гигиена",null,null,{"$f":"ПодробноеОписаниеБюджета[[#This Row],[Планируемые затраты]]-ПодробноеОписаниеБюджета[[#This Row],[Фактические затраты]]","v":{"v":0,"d":"0р."}},{"$f":"ПодробноеОписаниеБюджета[[#This Row],[Фактические затраты]]","v":{"v":0,"d":"$0"}}]
[null,"Фитнесс-клуб","Личная гигиена",null,null,{"$f":"ПодробноеОписаниеБюджета[[#This Row],[Планируемые затраты]]-ПодробноеОписаниеБюджета[[#This Row],[Фактические затраты]]","v":{"v":0,"d":"0р."}},{"$f":"ПодробноеОписаниеБюджета[[#This Row],[Фактические затраты]]","v":{"v":0,"d":"$0"}}]
[null,"Медицина","Личная гигиена",null,null,{"$f":"ПодробноеОписаниеБюджета[[#This Row],[Планируемые затраты]]-ПодробноеОписаниеБюджета[[#This Row],[Фактические затраты]]","v":{"v":0,"d":"0р."}},{"$f":"ПодробноеОписаниеБюджета[[#This Row],[Фактические затраты]]","v":{"v":0,"d":"$0"}}]
[null,"Еда","Домашние животные",{"v":150,"d":"150р."},{"v":75,"d":"75р."},{"$f":"ПодробноеОписаниеБюджета[[#This Row],[Планируемые затраты]]-ПодробноеОписаниеБюджета[[#This Row],[Фактические затраты]]","v":{"v":75,"d":"75р."}},{"$f":"ПодробноеОписаниеБюджета[[#This Row],[Фактические затраты]]","v":{"v":75,"d":"$75"}}]
[null,"Парикмахер","Домашние животные",{"v":20,"d":"20р."},{"v":25,"d":"25р."},{"$f":"ПодробноеОписаниеБюджета[[#This Row],[Планируемые затраты]]-ПодробноеОписаниеБюджета[[#This Row],[Фактические затраты]]","v":{"v":-5,"d":"-5р."}},{"$f":"ПодробноеОписаниеБюджета[[#This Row],[Фактические затраты]]","v":{"v":25,"d":"$25"}}]
[null,"Медицина","Домашние животные",null,null,{"$f":"ПодробноеОписаниеБюджета[[#This Row],[Планируемые затраты]]-ПодробноеОписаниеБюджета[[#This Row],[Фактические затраты]]","v":{"v":0,"d":"0р."}},{"$f":"ПодробноеОписаниеБюджета[[#This Row],[Фактические затраты]]","v":{"v":0,"d":"$0"}}]
[null,"Игрушки","Домашние животные",null,null,{"$f":"ПодробноеОписаниеБюджета[[#This Row],[Планируемые затраты]]-ПодробноеОписаниеБюджета[[#This Row],[Фактические затраты]]","v":{"v":0,"d":"0р."}},{"$f":"ПодробноеОписаниеБюджета[[#This Row],[Фактические затраты]]","v":{"v":0,"d":"$0"}}]
[null,"Инвестиционный счет","Сбережения и инвестиции",{"v":200,"d":"200р."},{"v":200,"d":"200р."},{"$f":"ПодробноеОписаниеБюджета[[#This Row],[Планируемые затраты]]-ПодробноеОписаниеБюджета[[#This Row],[Фактические затраты]]","v":{"v":0,"d":"0р."}},{"$f":"ПодробноеОписаниеБюджета[[#This Row],[Фактические затраты]]","v":{"v":200,"d":"$200"}}]
[null,"Пенсионный счет","Сбережения и инвестиции",null,null,{"$f":"ПодробноеОписаниеБюджета[[#This Row],[Планируемые затраты]]-ПодробноеОписаниеБюджета[[#This Row],[Фактические затраты]]","v":{"v":0,"d":"0р."}},{"$f":"ПодробноеОписаниеБюджета[[#This Row],[Фактические затраты]]","v":{"v":0,"d":"$0"}}]
[null,"Федеральные","Налоги",{"v":300,"d":"300р."},{"v":300,"d":"300р."},{"$f":"ПодробноеОписаниеБюджета[[#This Row],[Планируемые затраты]]-ПодробноеОписаниеБюджета[[#This Row],[Фактические затраты]]","v":{"v":0,"d":"0р."}},{"$f":"ПодробноеОписаниеБюджета[[#This Row],[Фактические затраты]]","v":{"v":300,"d":"$300"}}]
[null,"Местные","Налоги",null,null,{"$f":"ПодробноеОписаниеБюджета[[#This Row],[Планируемые затраты]]-ПодробноеОписаниеБюджета[[#This Row],[Фактические затраты]]","v":{"v":0,"d":"0р."}},{"$f":"ПодробноеОписаниеБюджета[[#This Row],[Фактические затраты]]","v":{"v":0,"d":"$0"}}]
[null,"Государственные","Налоги",null,null,{"$f":"ПодробноеОписаниеБюджета[[#This Row],[Планируемые затраты]]-ПодробноеОписаниеБюджета[[#This Row],[Фактические затраты]]","v":{"v":0,"d":"0р."}},{"$f":"ПодробноеОписаниеБюджета[[#This Row],[Фактические затраты]]","v":{"v":0,"d":"$0"}}]
[null,"Автобус и такси","Транспорт",{"v":100,"d":"100р."},{"v":150,"d":"150р."},{"$f":"ПодробноеОписаниеБюджета[[#This Row],[Планируемые затраты]]-ПодробноеОписаниеБюджета[[#This Row],[Фактические затраты]]","v":{"v":-50,"d":"-50р."}},{"$f":"ПодробноеОписаниеБюджета[[#This Row],[Фактические затраты]]","v":{"v":150,"d":"$150"}}]
[null,"Топливо","Транспорт",{"v":450,"d":"450р."},{"v":400,"d":"400р."},{"$f":"ПодробноеОписаниеБюджета[[#This Row],[Планируемые затраты]]-ПодробноеОписаниеБюджета[[#This Row],[Фактические затраты]]","v":{"v":50,"d":"50р."}},{"$f":"ПодробноеОписаниеБюджета[[#This Row],[Фактические затраты]]","v":{"v":400,"d":"$400"}}]
[null,"Страхование","Транспорт",{"v":300,"d":"300р."},{"v":300,"d":"300р."},{"$f":"ПодробноеОписаниеБюджета[[#This Row],[Планируемые затраты]]-ПодробноеОписаниеБюджета[[#This Row],[Фактические затраты]]","v":{"v":0,"d":"0р."}},{"$f":"ПодробноеОписаниеБюджета[[#This Row],[Фактические затраты]]","v":{"v":300,"d":"$300"}}]
[null,"Лицензирование","Транспорт",{"v":25,"d":"25р."},{"v":25,"d":"25р."},{"$f":"ПодробноеОписаниеБюджета[[#This Row],[Планируемые затраты]]-ПодробноеОписаниеБюджета[[#This Row],[Фактические затраты]]","v":{"v":0,"d":"0р."}},{"$f":"ПодробноеОписаниеБюджета[[#This Row],[Фактические затраты]]","v":{"v":25,"d":"$25"}}]
[null,"Обслуживание","Транспорт",{"v":100,"d":"100р."},{"v":50,"d":"50р."},{"$f":"ПодробноеОписаниеБюджета[[#This Row],[Планируемые затраты]]-ПодробноеОписаниеБюджета[[#This Row],[Фактические затраты]]","v":{"v":50,"d":"50р."}},{"$f":"ПодробноеОписаниеБюджета[[#This Row],[Фактические затраты]]","v":{"v":50,"d":"$50"}}]
[null,"Оплата парковки","Транспорт",null,null,{"$f":"ПодробноеОписаниеБюджета[[#This Row],[Планируемые затраты]]-ПодробноеОписаниеБюджета[[#This Row],[Фактические затраты]]","v":{"v":0,"d":"0р."}},{"$f":"ПодробноеОписаниеБюджета[[#This Row],[Фактические затраты]]","v":{"v":0,"d":"$0"}}]
[null,"Платежи за автомобиль","Транспорт",{"v":450,"d":"450р."},{"v":450,"d":"450р."},{"$f":"ПодробноеОписаниеБюджета[[#This Row],[Планируемые затраты]]-ПодробноеОписаниеБюджета[[#This Row],[Фактические затраты]]","v":{"v":0,"d":"0р."}},{"$f":"ПодробноеОписаниеБюджета[[#This Row],[Фактические затраты]]","v":{"v":450,"d":"$450"}}]
[null,"Всего",null,{"$f":"SUBTOTAL(109,ПодробноеОписаниеБюджета[Планируемые затраты])","v":{"v":7915,"d":"7,915р."}},{"$f":"SUBTOTAL(109,ПодробноеОписаниеБюджета[Фактические затраты])","v":{"v":7860,"d":"7,860р."}},{"$f":"SUBTOTAL(109,ПодробноеОписаниеБюджета[Разница])","v":{"v":55,"d":"55р."}}]

{"sheet":"Дополнительные данные","index":2,"n_rows":15,"n_cols":5,"rows_kept":15}
[null,"Сводная таблица для диаграммы \"Обзор бюджета\"",null,null,"Список подстановки для категории \"Сведения о бюджете\""]
[null,"Категория","Сумма по полю Фактические затраты",null,"Просмотр категорий бюджета"]
[null,"Дети",140,null,"Дети"]
[null,"Развлечения",358,null,"Развлечения"]
[null,"Еда",1320,null,"Еда"]
[null,"Подарки и благотворительность",125,null,"Подарки и благотворительность"]
[null,"Жилье",2702,null,"Жилье"]
[null,"Страхование",900,null,"Страхование"]
[null,"Займы",200,null,"Займы"]
[null,"Личная гигиена",140,null,"Личная гигиена"]
[null,"Домашние животные",100,null,"Домашние животные"]
[null,"Сбережения и инвестиции",200,null,"Сбережения и инвестиции"]
[null,"Налоги",300,null,"Налоги"]
[null,"Транспорт",1375,null,"Транспорт"]
[null,"Общий итог",7860]